fUST/lending_fUST_20250205
["ID","MTS","AMOUNT","RATE_DAILY","PERIOD"]
[351688678,1738732240619,-2833.93428047,0.00016,15]
[351688780,1738732243470,-603.53567869,0.00016,15]
[351688782,1738732243581,-475.23646994,0.00016,15]
[351688945,1738732506428,187.940267,0.00013699,2]
[351688947,1738733066979,160.577457,0.00013973,2]
[351688989,1738733269676,311.0,0.0002,120]
[351688993,1738733323618,40021.0733056,0.00013,2]
[351689020,1738733379275,189.664073,0.00013699,2]
[351689047,1738733432652,-1694.49897599,0.00015726,2]
[351689048,1738733432662,-230.6490467,0.00015839,2]
[351689049,1738733432672,-248.88084669,0.00015854,2]
[351689050,1738733432681,-300.0,0.00015899,2]
[351689051,1738733432691,-508.16083174,0.000159,2]
[351689052,1738733432701,-9940.83698317,0.000159,2]
[351689053,1738733432712,-5408.63812003,0.000159,2]
[351689054,1738733432724,-983.00135586,0.000159,2]
[351689055,1738733432735,-760.16229441,0.000159,2]
[351689056,1738733432745,-295.20770559,0.000159,2]
[351689057,1738733432829,-314.54692683,0.000159,2]
[351689058,1738733432842,-1843.39279743,0.000159,2]
[351689068,1738733438499,-8089.93947289,0.000159,2]
[351689069,1738733438511,-16320.5065448,0.000159,2]
[351689070,1738733438520,-256.15,0.00015954,2]
[351689071,1738733438529,-500.0,0.00015973,2]
[351689072,1738733438539,-169.75911496,0.00015998,2]
[351689073,1738733438548,-396.0,0.00015998,2]
[351689074,1738733438557,-500.0,0.00015999,2]
[351689075,1738733438567,-14743.18602489,0.00016,15]
[351689076,1738733438578,-55051.76447639,0.00016,15]
[351689077,1738733438590,-4900.0,0.00016,15]
[351689135,1738733490181,500.0,0.00014164,2]
[351689136,1738733965259,173.718304,0.00013973,2]
[351689176,1738734347826,188.7603,0.00013699,2]
[351689213,1738734631799,-743.9260516,0.00015898,2]
[351689215,1738734631808,-164.78351878,0.000159,7]
[351689217,1738734631818,-308.31002669,0.000159,2]
[351689219,1738734631827,-1568.84728527,0.000159,2]
[351689221,1738734631837,-308.79686797,0.00015973,2]
[351689223,1738734631847,-300.0,0.00015995,2]
[351689225,1738734631856,-153.0,0.00015996,2]
[351689227,1738734631867,-153.0,0.00015996,2]
[351689229,1738734631876,-153.0,0.00015996,2]
[351689231,1738734631886,-153.0,0.00015996,2]
[351689233,1738734631895,-153.0,0.00015996,2]
[351689235,1738734631904,-153.0,0.00015996,2]
[351689237,1738734631914,-153.0,0.00015996,2]
[351689239,1738734631924,-153.0,0.00015996,2]
[351689241,1738734631933,-153.0,0.00015996,2]
[351689243,1738734631942,-153.0,0.00015996,2]
[351689245,1738734631952,-153.0,0.00015996,2]
[351689248,1738734631962,-153.0,0.00015996,2]
[351689251,1738734631971,-153.0,0.00015996,2]
[351689253,1738734631980,-153.0,0.00015996,2]
[351689255,1738734631988,-153.0,0.00015996,2]
[351689257,1738734631997,-153.0,0.00015996,2]
[351689259,1738734632006,-153.0,0.00015996,2]
[351689261,1738734632016,-153.0,0.00015996,2]
[351689263,1738734632026,-153.0,0.00015996,2]
[351689265,1738734632035,-153.0,0.00015996,2]
[351689267,1738734632044,-153.0,0.00015996,2]
[351689268,1738734632054,-153.0,0.00015996,2]
[351689270,1738734632063,-153.0,0.00015996,2]
[351689272,1738734632073,-153.0,0.00015996,2]
[351689274,1738734632082,-153.0,0.00015996,2]
[351689276,1738734632092,-153.0,0.00015996,2]
[351689278,1738734632102,-153.0,0.00015996,2]
[351689280,1738734632111,-153.0,0.00015996,2]
[351689282,1738734632121,-153.0,0.00015996,2]
[351689284,1738734632131,-153.0,0.00015996,2]
[351689286,1738734632141,-153.0,0.00015996,2]
[351689288,1738734632150,-153.0,0.00015996,2]
[351689290,1738734632159,-153.0,0.00015996,2]
[351689292,1738734632169,-153.0,0.00015996,2]
[351689294,1738734632178,-153.0,0.00015996,2]
[351689296,1738734632188,-153.0,0.00015996,2]
[351689298,1738734632197,-153.0,0.00015996,2]
[351689300,1738734632206,-153.0,0.00015996,2]
[351689302,1738734632215,-153.0,0.00015996,2]
[351689304,1738734632225,-153.0,0.00015996,2]
[351689306,1738734632237,-153.0,0.00015996,2]
[351689308,1738734632247,-153.0,0.00015996,2]
[351689310,1738734632256,-153.0,0.00015996,2]
[351689312,1738734632266,-153.0,0.00015996,2]
[351689314,1738734632275,-153.0,0.00015996,2]
[351689316,1738734632284,-169.75911495,0.00015998,2]
[351689318,1738734632294,-500.0,0.00015999,2]
[351689320,1738734632305,-500.0,0.00015999,2]
[351689322,1738734632316,-18914.28061563,0.00016,15]
[351689325,1738734632338,-629.9284961,0.00016,15]
[351689327,1738734632349,-433.49,0.00016,15]
[351689330,1738734632361,-342.42666817,0.00016,15]
[351689412,1738734637655,-16766.48936626,0.00016,15]
[351689413,1738734637792,-6561.79765286,0.00016,15]
[351689421,1738734639839,-2521.337325,0.00016,15]
[351689431,1738734642737,-396.0,0.00015998,2]
[351689433,1738734642746,-1.88846228,0.00016,15]
[351689436,1738734642795,-1608.20949023,0.00016,15]
[351689439,1738734642818,-11549.99701629,0.00016,15]
[351689490,1738734698085,500.0,0.00014164,2]
[351689491,1738734809956,3661.6818939,0.0002042,120]
[351689492,1738734822975,404.1837753,0.000204,120]
[351689493,1738734876089,158.57394,0.00013973,2]
[351689507,1738735099599,1654.32925722,0.0001,2]
[351689508,1738735163995,500.0,0.00014164,2]
[351689522,1738735369664,186.618052,0.00013699,2]
[351689602,1738735703053,167.779731,0.00013973,2]
[351689638,1738735832089,-448.46367761,0.00015336,2]
[351689639,1738735832211,-879.14332949,0.00015336,2]
[351689640,1738735832222,-617.0,0.00015647,2]
[351689641,1738735832232,-300.0,0.00015899,2]
[351689642,1738735832242,-269.77127331,0.000159,2]
[351689643,1738735832251,-830.35028828,0.000159,2]
[351689675,1738735837940,-396.0,0.00015795,2]
[351689676,1738735837950,-845.84446292,0.000159,2]
[351689677,1738735837960,-1411.96255677,0.000159,2]
[351689678,1738735837970,-153.0,0.00015965,2]
[351689679,1738735837979,-153.0,0.00015965,2]
[351689680,1738735837988,-153.0,0.00015965,2]
[351689681,1738735837998,-153.0,0.00015965,2]
[351689682,1738735838007,-153.0,0.00015965,2]
[351689683,1738735838017,-153.0,0.00015965,2]
[351689684,1738735838026,-153.0,0.00015965,2]
[351689685,1738735838035,-153.0,0.00015965,2]
[351689686,1738735838048,-153.0,0.00015965,2]
[351689687,1738735838057,-153.0,0.00015965,2]
[351689688,1738735838067,-153.0,0.00015965,2]
[351689689,1738735838076,-153.0,0.00015965,2]
[351689690,1738735838085,-500.0,0.00015973,2]
[351689691,1738735838095,-500.0,0.00015973,2]
[351689692,1738735838104,-152.0,0.00015998,2]
[351689693,1738735838114,-500.0,0.00015999,2]
[351689694,1738735838123,-17980.93034034,0.00016,15]
[351689712,1738735840055,-1695.9424191,0.00016,15]
[351689854,1738735846054,-4066.81850203,0.00016,15]
[351689856,1738735846066,-5305.95440747,0.00016,15]
[351689859,1738735846078,-331.266836,0.00016,15]
[351689964,1738735858631,151.0,0.00015,2]
[351689965,1738735858928,151.0,0.000145,2]
[351689966,1738735859336,151.0,0.00014,2]
[351689967,1738735859682,151.0,0.000135,2]
[351689968,1738735859972,151.0,0.00013,2]
[351689969,1738735860395,151.0,0.000125,2]
[351689970,1738735860584,151.0,0.00012,2]
[351689971,1738735860868,151.0,0.000115,2]
[351689972,1738735861167,151.0,0.00011,2]
[351689993,1738736595906,167.779731,0.00013973,2]
[351690005,1738736833705,500.0,0.00014164,2]
[351690014,1738736919886,42431.45606846,0.00013,2]
[351690020,1738736959797,1069.04571798,5e-05,30]
[351690024,1738737010986,1000.0,0.0002,120]
[351690025,1738737028745,1000.0,0.00018,30]
[351690046,1738737032301,-158.97,0.000152,2]
[351690048,1738737032313,-300.0,0.00015499,2]
[351690049,1738737032324,-151.0,0.000155,2]
[351690051,1738737032334,-5000.0,0.000155,2]
[351690053,1738737032344,-12220.61823137,0.00015706,2]
[351690055,1738737032354,-296.70411232,0.00015855,2]
[351690057,1738737032363,-362.20701792,0.00015899,2]
[351690059,1738737032373,-1351.13562725,0.00015899,2]
[351690061,1738737032383,-1351.13562721,0.00015899,2]
[351690063,1738737032392,-1351.13562721,0.000159,2]
[351690065,1738737032401,-1351.13562721,0.000159,2]
[351690066,1738737032411,-4494.09963794,0.000159,2]
[351690069,1738737032420,-1617.81638606,0.000159,2]
[351690070,1738737032430,-1351.13562721,0.000159,2]
[351690073,1738737032440,-14560.0,0.000159,2]
[351690074,1738737032449,-208.37,0.00015942,2]
[351690077,1738737032460,-153.0,0.00015955,2]
[351690079,1738737032469,-153.0,0.00015955,2]
[351690081,1738737032479,-153.0,0.00015955,2]
[351690082,1738737032489,-153.0,0.00015955,2]
[351690085,1738737032499,-153.0,0.00015955,2]
[351690087,1738737032508,-153.0,0.00015955,2]
[351690088,1738737032518,-153.0,0.00015955,2]
[351690090,1738737032527,-153.0,0.00015955,2]
[351690092,1738737032537,-153.0,0.00015955,2]
[351690094,1738737032547,-151.0,0.0001599,2]
[351690097,1738737032559,-152.0,0.00015992,2]
[351690099,1738737032568,-9835.1499527,0.00015993,2]
[351690101,1738737032577,-500.0,0.00015998,2]
[351690103,1738737032587,-396.0,0.00015998,2]
[351690104,1738737032596,-151.0,0.00015999,2]
[351690107,1738737032606,-151.0,0.00015999,2]
[351690109,1738737032616,-151.0,0.00015999,2]
[351690111,1738737032625,-151.0,0.00015999,2]
[351690112,1738737032634,-151.0,0.00015999,2]
[351690114,1738737032644,-151.0,0.00015999,2]
[351690117,1738737032654,-151.0,0.00015999,2]
[351690119,1738737032663,-233.01909,0.00015999,2]
[351690120,1738737032673,-151.0,0.00015999,2]
[351690123,1738737032683,-151.0,0.00015999,2]
[351690124,1738737032693,-151.0,0.00015999,2]
[351690126,1738737032702,-151.0,0.00015999,2]
[351690128,1738737032712,-151.0847,0.00015999,2]
[351690130,1738737032721,-259.427683,0.00015999,2]
[351690132,1738737032730,-260.074422,0.00015999,2]
[351690134,1738737032739,-260.074422,0.00015999,2]
[351690136,1738737032749,-151.0,0.00015999,2]
[351690138,1738737032759,-151.0,0.00015999,2]
[351690141,1738737032769,-500.0,0.00015999,2]
[351690142,1738737032779,-260.074422,0.00015999,2]
[351690144,1738737032788,-260.074422,0.00015999,2]
[351690146,1738737032797,-153.558345,0.00015999,2]
[351690148,1738737032806,-153.558345,0.00015999,2]
[351690150,1738737032815,-153.558345,0.00015999,2]
[351690152,1738737032824,-153.558345,0.00015999,2]
[351690154,1738737032834,-2415.54831,0.00015999,2]
[351690156,1738737032843,-2415.54831,0.00015999,2]
[351690158,1738737032852,-2415.54831,0.00015999,2]
[351690160,1738737032862,-2415.54831,0.00015999,2]
[351690162,1738737032870,-543.281227,0.00015999,2]
[351690164,1738737032879,-543.281227,0.00015999,2]
[351690166,1738737032889,-543.281227,0.00015999,2]
[351690168,1738737032898,-543.281227,0.00015999,2]
[351690170,1738737032908,-151.0,0.00015999,2]
[351690172,1738737032919,-151.0,0.00015999,2]
[351690174,1738737032928,-1458.565949,0.00015999,2]
[351690176,1738737032937,-1458.565949,0.00015999,2]
[351690178,1738737032947,-1458.565949,0.00015999,2]
[351690180,1738737032956,-1458.565949,0.00015999,2]
[351690182,1738737032966,-4397.883216,0.00015999,2]
[351690184,1738737032976,-4397.883216,0.00015999,2]
[351690186,1738737032986,-4397.883216,0.00015999,2]
[351690188,1738737032996,-4397.883216,0.00015999,2]
[351690190,1738737033006,-151.0,0.00015999,2]
[351690192,1738737033015,-151.0,0.00015999,2]
[351690194,1738737033025,-151.0,0.00015999,2]
[351690196,1738737033034,-151.0,0.00015999,2]
[351690198,1738737033048,-875.630998,0.00015999,2]
[351690200,1738737033059,-875.630998,0.00015999,2]
[351690202,1738737033070,-875.630998,0.00015999,2]
[351690204,1738737033080,-875.630998,0.00015999,2]
[351690206,1738737033090,-170.841406,0.00015999,2]
[351690208,1738737033100,-170.841406,0.00015999,2]
[351690210,1738737033110,-170.841406,0.00015999,2]
[351690212,1738737033120,-170.841406,0.00015999,2]
[351690214,1738737033129,-170.841406,0.00015999,2]
[351690216,1738737033139,-170.841406,0.00015999,2]
[351690218,1738737033149,-170.841406,0.00015999,2]
[351690220,1738737033158,-170.841406,0.00015999,2]
[351690222,1738737033168,-170.841406,0.00015999,2]
[351690224,1738737033177,-170.841406,0.00015999,2]
[351690226,1738737033187,-151.0,0.00015999,2]
[351690228,1738737033197,-154.861506,0.00015999,2]
[351690230,1738737033207,-1648.691508,0.00015999,2]
[351690232,1738737033217,-1648.691508,0.00015999,2]
[351690234,1738737033227,-1648.691508,0.00015999,2]
[351690236,1738737033237,-1648.691508,0.00015999,2]
[351690238,1738737033249,-1648.691508,0.00015999,2]
[351690241,1738737033259,-1648.691508,0.00015999,2]
[351690243,1738737033269,-1648.691508,0.00015999,2]
[351690245,1738737033279,-1648.691508,0.00015999,2]
[351690247,1738737033290,-1648.691508,0.00015999,2]
[351690260,1738737033404,-1648.691508,0.00015999,2]
[351690262,1738737033414,-151.0,0.00015999,2]
[351690264,1738737033424,-151.0,0.00015999,2]
[351690266,1738737033434,-151.0,0.00015999,2]
[351690267,1738737033444,-151.0,0.00015999,2]
[351690270,1738737033454,-151.748068,0.00015999,2]
[351690271,1738737033464,-1363.580442,0.00015999,2]
[351690274,1738737033474,-1363.580442,0.00015999,2]
[351690276,1738737033483,-1363.580442,0.00015999,2]
[351690278,1738737033493,-1363.580442,0.00015999,2]
[351690280,1738737033502,-1363.580442,0.00015999,2]
[351690281,1738737033512,-1363.580442,0.00015999,2]
[351690283,1738737033522,-1363.580442,0.00015999,2]
[351690285,1738737033531,-1363.580442,0.00015999,2]
[351690288,1738737033541,-1363.580442,0.00015999,2]
[351690290,1738737033551,-1363.580442,0.00015999,2]
[351690292,1738737033561,-395.319464,0.00015999,2]
[351690294,1738737033570,-395.319464,0.00015999,2]
[351690296,1738737033580,-395.319464,0.00015999,2]
[351690298,1738737033590,-395.319464,0.00015999,2]
[351690300,1738737033599,-395.319464,0.00015999,2]
[351690302,1738737033607,-395.319464,0.00015999,2]
[351690304,1738737033617,-395.319464,0.00015999,2]
[351690306,1738737033626,-151.0,0.00015999,2]
[351690308,1738737033635,-395.319464,0.00015999,2]
[351690310,1738737033644,-151.0,0.00015999,2]
[351690312,1738737033653,-395.319464,0.00015999,2]
[351690313,1738737033662,-151.0,0.00015999,2]
[351690315,1738737033671,-395.319464,0.00015999,2]
[351690317,1738737033680,-151.0,0.00015999,2]
[351690318,1738737033689,-151.0,0.00015999,2]
[351690319,1738737033699,-151.0,0.00015999,2]
[351690320,1738737033709,-151.0,0.00015999,2]
[351690321,1738737033718,-1443.207925,0.00015999,2]
[351690322,1738737033728,-1443.207925,0.00015999,2]
[351690323,1738737033737,-460.71994786,0.00015999,2]
[351690324,1738737033747,-491504.199287,0.00016,15]
[351690338,1738737038121,-500.0,0.00015998,2]
[351690339,1738737038131,-500.0,0.00015998,2]
[351690340,1738737038140,-500.0,0.00015998,2]
[351690341,1738737038150,-40.28423873,0.00015998,2]
[351690342,1738737038166,-459.71576127,0.00015998,2]
[351690343,1738737038176,-500.0,0.00015998,2]
[351690344,1738737038185,-500.0,0.00015998,2]
[351690345,1738737038195,-500.0,0.00015998,2]
[351690346,1738737038205,-500.0,0.00015998,2]
[351690347,1738737038214,-500.0,0.00015998,2]
[351690348,1738737038224,-406.46081508,0.00015998,2]
[351690350,1738737038321,-604.2237919,0.00015998,2]
[351690351,1738737038331,-500.0,0.00015998,2]
[351690352,1738737038341,-500.0,0.00015998,2]
[351690353,1738737038350,-564.3,0.00015998,2]
[351690354,1738737038360,-500.0,0.00015998,2]
[351690355,1738737038370,-500.0,0.00015998,2]
[351690356,1738737038380,-500.0,0.00015998,2]
[351690357,1738737038390,-500.0,0.00015998,2]
[351690358,1738737038399,-500.0,0.00015998,2]
[351690359,1738737038408,-500.0,0.00015998,2]
[351690360,1738737038418,-500.0,0.00015998,2]
[351690361,1738737038427,-500.0,0.00015998,2]
[351690362,1738737038437,-308.7289747,0.00015998,2]
[351690363,1738737038446,-500.0,0.00015998,2]
[351690364,1738737038455,-437.24499078,0.00015998,2]
[351690365,1738737038465,-500.0,0.00015998,2]
[351690366,1738737038474,-500.0,0.00015998,2]
[351690367,1738737038484,-500.0,0.00015998,2]
[351690368,1738737038495,-393.70898575,0.00015998,2]
[351690369,1738737038504,-500.0,0.00015998,2]
[351690370,1738737038513,-210.21437763,0.00015998,2]
[351690371,1738737038522,-500.0,0.00015998,2]
[351690372,1738737038532,-500.0,0.00015998,2]
[351690373,1738737038542,-500.0,0.00015998,2]
[351690374,1738737038551,-500.0,0.00015998,2]
[351690375,1738737038563,-500.0,0.00015998,2]
[351690376,1738737038572,-500.0,0.00015998,2]
[351690377,1738737038582,-500.0,0.00015998,2]
[351690378,1738737038591,-500.0,0.00015998,2]
[351690379,1738737038600,-500.0,0.00015998,2]
[351690380,1738737038609,-500.0,0.00015998,2]
[351690381,1738737038619,-500.0,0.00015998,2]
[351690382,1738737038628,-500.0,0.00015998,2]
[351690383,1738737038637,-500.0,0.00015998,2]
[351690384,1738737038647,-500.0,0.00015998,2]
[351690385,1738737038656,-493.08582506,0.00015998,2]
[351690386,1738737038665,-500.0,0.00015998,2]
[351690387,1738737038674,-500.0,0.00015998,2]
[351690388,1738737038684,-500.0,0.00015998,2]
[351690389,1738737038693,-500.0,0.00015998,2]
[351690390,1738737038702,-500.0,0.00015998,2]
[351690391,1738737038711,-500.0,0.00015998,2]
[351690392,1738737038721,-500.0,0.00015998,2]
[351690393,1738737038731,-500.0,0.00015998,2]
[351690394,1738737038740,-500.0,0.00015998,2]
[351690395,1738737038750,-500.0,0.00015998,2]
[351690396,1738737038759,-500.0,0.00015998,2]
[351690397,1738737038769,-500.0,0.00015998,2]
[351690398,1738737038779,-500.0,0.00015998,2]
[351690399,1738737038789,-500.0,0.00015998,2]
[351690400,1738737038798,-500.0,0.00015998,2]
[351690401,1738737038808,-1443.207925,0.00015999,2]
[351690402,1738737038822,-1443.207925,0.00015999,2]
[351690403,1738737038832,-2865456.90429264,0.00016,15]
[351690440,1738737040080,-8208.09448612,0.00016,15]
[351690533,1738737056354,1000.0,0.00015,15]
[351690534,1738737066212,1000.0,0.00015,2]
[351690535,1738737068101,2000.0,0.00020411,120]
[351690536,1738737068386,2000.0,0.00020411,120]
[351690537,1738737068676,2000.0,0.00020411,120]
[351690538,1738737069112,2000.0,0.00020411,120]
[351690539,1738737069265,2000.0,0.00020411,120]
[351690540,1738737069551,2000.0,0.00020411,120]
[351690541,1738737069844,2000.0,0.00020411,120]
[351690542,1738737070154,2000.0,0.00020411,120]
[351690543,1738737070447,2000.0,0.00020411,120]
[351690544,1738737070889,2000.0,0.00020411,120]
[351690545,1738737086513,2000.0,0.00018,30]
[351690546,1738737086890,2000.0,0.00018,30]
[351690547,1738737087110,2000.0,0.00018,30]
[351690548,1738737087415,2000.0,0.00018,30]
[351690549,1738737087718,2000.0,0.00018,30]
[351690550,1738737088016,2000.0,0.00018,30]
[351690551,1738737088368,2000.0,0.00018,30]
[351690552,1738737088677,2000.0,0.00018,30]
[351690553,1738737089004,2000.0,0.00018,30]
[351690554,1738737089335,2000.0,0.00018,30]
[351690555,1738737101580,500.0,0.00014164,2]
[351690556,1738737109887,202.369532,0.00013699,2]
[351690559,1738737163749,2000.0,0.00018,30]
[351690560,1738737164058,2000.0,0.00018,30]
[351690561,1738737164348,2000.0,0.00018,30]
[351690562,1738737164644,2000.0,0.00018,30]
[351690563,1738737164942,2000.0,0.00018,30]
[351690564,1738737165225,2000.0,0.00018,30]
[351690565,1738737165535,2000.0,0.00018,30]
[351690566,1738737165825,2000.0,0.00018,30]
[351690571,1738737266109,253.4,0.00010959,2]
[351690572,1738737276574,449.9,0.00010959,2]
[351690573,1738737287051,374.91,0.00010959,2]
[351690574,1738737297497,312.43,0.00010959,2]
[351690575,1738737318460,260.36,0.00010959,2]
[351690576,1738737328951,548.43,0.00010959,2]
[351690577,1738737360093,753.38,0.00010959,2]
[351690582,1738737519086,174.939791,0.00013973,2]
[351690590,1738737959353,160.0,0.00014964,4]
[351690591,1738737959641,160.0,0.00014557,3]
[351690594,1738738105892,159.154226,0.00013699,2]
[351690631,1738738232717,-160.0,0.00015371,5]
[351690632,1738738232727,-328.93523894,0.00015679,2]
[351690633,1738738232736,-300.0,0.00015699,2]
[351690634,1738738232745,-2800.84456549,0.000157,2]
[351690637,1738738236859,500.0,0.00014164,2]
[351690642,1738738238341,-3012.02137581,0.000157,2]
[351690643,1738738238353,-27668.04098396,0.000157,2]
[351690644,1738738238364,-1088.31219625,0.000157,2]
[351690648,1738738240441,-722.92988863,0.000157,2]
[351690649,1738738240492,-2140.10255038,0.000157,2]
[351690650,1738738240540,-2516.90000002,0.000157,2]
[351690688,1738738243463,-8660.58865901,0.000157,2]
[351690689,1738738243475,-874.56733294,0.000157,2]
[351690691,1738738243486,-9724.5247955,0.000157,2]
[351690881,1738738624562,163.592575,0.00013973,2]
[351690882,1738738633072,503.96,0.00010959,2]
[351690883,1738738643603,190.89,0.00010959,2]
[351690884,1738738654102,159.08,0.00010959,2]
[351690885,1738738664641,795.41,0.00010959,2]
[351690889,1738738705402,500.0,0.00014164,2]
[351690890,1738738739125,1000.0,0.00015,4]
[351690891,1738738761033,534.8076777,0.00014799,2]
[351690892,1738738923442,165.741237,0.00013699,2]
[351690925,1738739150099,10955.44894005,0.00015,2]
[351690936,1738739375466,500.0,0.00014164,2]
[351690971,1738739432895,-216.74707501,0.00015691,2]
[351690972,1738739432904,-371.49800715,0.00015699,5]
[351690973,1738739432914,-300.0,0.00015699,2]
[351690974,1738739432923,-10005.30632046,0.000157,2]
[351690975,1738739432935,-2600.0,0.000157,2]
[351690976,1738739432960,-1084.81050534,0.000157,2]
[351690977,1738739432971,-35912.94435039,0.000157,2]
[351690978,1738739432980,-153.0,0.00015728,2]
[351690979,1738739432990,-153.0,0.00015728,2]
[351690980,1738739433000,-153.0,0.00015728,2]
[351690981,1738739433009,-153.0,0.00015728,2]
[351690982,1738739433020,-153.0,0.00015728,2]
[351690983,1738739433030,-153.0,0.00015728,2]
[351690984,1738739433039,-153.0,0.00015728,2]
[351690985,1738739433048,-153.0,0.00015728,2]
[351690986,1738739433057,-153.0,0.00015728,2]
[351690987,1738739433069,-151.0,0.00015749,2]
[351690988,1738739433079,-151.0,0.00015749,2]
[351690989,1738739433089,-151.0,0.00015749,2]
[351690990,1738739433099,-151.0,0.00015749,2]
[351690991,1738739433108,-160.0,0.00015779,6]
[351690992,1738739433118,-290.9500322,0.00015839,2]
[351690993,1738739433127,-152.0,0.00015855,2]
[351690994,1738739433138,-250.0,0.00015869,2]
[351690995,1738739433149,-153.0,0.00015869,2]
[351690996,1738739433159,-153.0,0.00015869,2]
[351690997,1738739433168,-153.0,0.00015869,2]
[351690998,1738739433177,-153.0,0.00015869,2]
[351690999,1738739433186,-153.0,0.00015869,2]
[351691000,1738739433196,-153.0,0.00015869,2]
[351691001,1738739433205,-153.0,0.00015869,2]
[351691002,1738739433214,-153.0,0.00015869,2]
[351691003,1738739433223,-153.0,0.00015869,2]
[351691004,1738739433232,-153.0,0.00015869,2]
[351691005,1738739433241,-231.7,0.00015869,2]
[351691006,1738739433250,-151.0,0.00015869,2]
[351691007,1738739433259,-151.0,0.00015869,2]
[351691008,1738739433268,-151.0,0.00015869,2]
[351691009,1738739433277,-151.0,0.00015869,2]
[351691010,1738739433287,-151.0,0.00015869,2]
[351691011,1738739433297,-151.0,0.00015869,2]
[351691012,1738739433306,-151.0,0.00015869,2]
[351691013,1738739433315,-151.0,0.00015869,2]
[351691014,1738739433325,-151.0,0.00015869,2]
[351691015,1738739433334,-151.0,0.00015869,2]
[351691016,1738739433343,-151.0,0.00015869,2]
[351691017,1738739433352,-151.0,0.00015869,2]
[351691018,1738739433361,-151.0,0.00015869,2]
[351691019,1738739433370,-151.0,0.00015869,2]
[351691020,1738739433379,-151.0,0.00015869,2]
[351691021,1738739433389,-151.0,0.00015869,2]
[351691022,1738739433398,-200.53,0.00015869,2]
[351691023,1738739433407,-574.69605338,0.00015873,2]
[351691024,1738739433416,-574.69605337,0.0001588,2]
[351691025,1738739433425,-151.0,0.00015883,2]
[351691026,1738739433434,-151.0,0.00015883,2]
[351691027,1738739433443,-151.0,0.00015883,2]
[351691028,1738739433453,-151.0,0.00015883,2]
[351691029,1738739433462,-151.0,0.00015883,2]
[351691030,1738739433472,-151.0,0.00015883,2]
[351691031,1738739433481,-151.0,0.00015883,2]
[351691032,1738739433490,-151.0,0.00015883,2]
[351691033,1738739433499,-151.0,0.00015883,2]
[351691034,1738739433509,-151.0,0.00015883,2]
[351691035,1738739433518,-151.0,0.00015883,2]
[351691036,1738739433527,-151.0,0.00015883,2]
[351691037,1738739433536,-151.0,0.00015883,2]
[351691038,1738739433545,-151.0,0.00015883,2]
[351691039,1738739433554,-151.0,0.00015883,2]
[351691040,1738739433568,-151.0,0.00015883,2]
[351691041,1738739433577,-574.69605337,0.00015887,2]
[351691042,1738739433586,-574.69605337,0.00015893,2]
[351691043,1738739433595,-396.0,0.00015898,2]
[351691044,1738739433605,-574.69605337,0.000159,2]
[351691045,1738739433615,-1629.55978996,0.000159,2]
[351691046,1738739433624,-2953.77608493,0.000159,2]